fUST/lending_fUST_20250106
["ID","MTS","AMOUNT","RATE_DAILY","PERIOD"]
[347806890,1736119846257,-500.0,0.0002109,3]
[347806891,1736119846267,-500.0,0.0002109,3]
[347806892,1736119846276,-546.69901243,0.0002109,3]
[347806893,1736119846285,-638.67,0.0002109,3]
[347806894,1736119846295,-500.0,0.0002109,3]
[347806895,1736119846304,-500.0,0.0002109,3]
[347806896,1736119846314,-500.0,0.0002109,3]
[347806897,1736119846324,-353.053768,0.0002109,2]
[347806899,1736119846336,-353.053768,0.0002109,2]
[347806901,1736119846345,-500.0,0.0002109,5]
[347806903,1736119846355,-500.0,0.0002109,3]
[347806905,1736119846364,-500.0,0.0002109,3]
[347806907,1736119846375,-500.0,0.0002109,3]
[347806909,1736119846384,-500.0,0.0002109,3]
[347806911,1736119846394,-500.0,0.0002109,3]
[347806913,1736119846403,-500.0,0.0002109,3]
[347806914,1736119846413,-500.0,0.0002109,3]
[347806915,1736119846422,-544.71915857,0.0002109,3]
[347806916,1736119846433,-500.0,0.0002109,3]
[347806917,1736119846443,-500.0,0.0002109,3]
[347806918,1736119846453,-151.0,0.0002109,2]
[347806919,1736119846462,-500.0,0.0002109,3]
[347806920,1736119846474,-500.0,0.0002109,3]
[347806921,1736119846484,-500.0,0.0002109,3]
[347806922,1736119846494,-151.0,0.0002109,2]
[347806923,1736119846504,-500.0,0.0002109,3]
[347806924,1736119846515,-500.0,0.0002109,3]
[347806925,1736119846525,-500.0,0.0002109,3]
[347806926,1736119846535,-561.01,0.0002109,3]
[347806927,1736119846545,-500.0,0.0002109,3]
[347806928,1736119846555,-240.4097196,0.0002109,3]
[347806929,1736119846565,-614.61032456,0.0002109,3]
[347806930,1736119846574,-500.0,0.0002109,3]
[347806931,1736119846584,-500.0,0.0002109,3]
[347806932,1736119846594,-500.0,0.0002109,3]
[347806933,1736119846603,-500.0,0.0002109,3]
[347806934,1736119846612,-500.0,0.0002109,3]
[347806935,1736119846622,-500.0,0.0002109,3]
[347806936,1736119846633,-500.0,0.0002109,3]
[347806938,1736119846642,-500.0,0.0002109,3]
[347806940,1736119846652,-500.0,0.0002109,3]
[347806941,1736119846664,-500.0,0.0002109,3]
[347806942,1736119846674,-621.436077,0.0002109,3]
[347806943,1736119846684,-904.96,0.00021092,3]
[347806944,1736119846694,-1945.98012107,0.00021141,2]
[347806945,1736119846704,-604.55778577,0.00021233,2]
[347806946,1736119846714,-1945.98012107,0.00021245,2]
[347806947,1736119846723,-500.0,0.00021331,3]
[347806948,1736119846732,-1945.98012107,0.00021348,2]
[347806949,1736119846743,-151.0,0.00021363,2]
[347806950,1736119846752,-353.053768,0.00021363,2]
[347806951,1736119846762,-353.053768,0.00021363,2]
[347806952,1736119846774,-151.0,0.00021363,2]
[347806953,1736119846784,-2837.06,0.00021363,3]
[347806954,1736119846795,-151.0,0.00021363,2]
[347806955,1736119846889,-500.0,0.00021363,3]
[347806956,1736119846899,-500.0,0.00021363,3]
[347806957,1736119846909,-246.87,0.00021364,3]
[347806958,1736119846919,-500.0,0.00021364,3]
[347806959,1736119846928,-500.0,0.00021364,3]
[347806960,1736119846938,-500.0,0.00021364,3]
[347806961,1736119846947,-491.24350398,0.00021364,3]
[347806962,1736119846957,-500.0,0.00021364,3]
[347806963,1736119846967,-500.0,0.00021364,3]
[347806964,1736119846976,-500.0,0.00021364,3]
[347806965,1736119846986,-500.0,0.00021364,3]
[347806966,1736119846995,-904.96,0.00021366,3]
[347806967,1736119847005,-1945.98012107,0.00021452,2]
[347806968,1736119847014,-1945.98012107,0.00021555,2]
[347806969,1736119847024,-500.0,0.00021605,3]
[347806970,1736119847033,-2837.06,0.00021637,3]
[347806971,1736119847043,-500.0,0.00021637,3]
[347806972,1736119847052,-500.0,0.00021637,3]
[347806973,1736119847062,-500.0,0.00021638,3]
[347806974,1736119847071,-363.49480001,0.00021638,3]
[347806975,1736119847082,-151.0,0.00021639,2]
[347806976,1736119847091,-151.0,0.00021639,2]
[347806977,1736119847100,-151.0,0.00021639,2]
[347806978,1736119847110,-151.0,0.00021639,2]
[347806979,1736119847120,-151.0,0.00021639,2]
[347806980,1736119847129,-904.96,0.0002164,3]
[347806981,1736119847138,-4163.96489868,0.00021658,2]
[347806982,1736119847148,-34651.72795523,0.00021658,2]
[347806983,1736119847157,-1945.98012107,0.00021659,2]
[347806984,1736119847167,-451.596,0.0002175,2]
[347806985,1736119847176,-1945.98012107,0.00021762,2]
[347806986,1736119847186,-604.55778577,0.00021782,2]
[347806987,1736119847195,-1945.98012107,0.00021866,2]
[347806988,1736119847205,-500.0,0.00021879,3]
[347806989,1736119847215,-2837.06,0.00021911,3]
[347806990,1736119847226,-500.0,0.00021911,3]
[347806991,1736119847236,-396.04341708,0.00021911,3]
[347806992,1736119847246,-500.0,0.00021912,3]
[347806993,1736119847255,-904.96,0.00021914,3]
[347806994,1736119847265,-1945.98012107,0.00021969,2]
[347806995,1736119847275,-151.0,0.00022072,7]
[347806996,1736119847285,-353.053768,0.00022072,7]
[347806997,1736119847295,-353.053768,0.00022072,7]
[347806998,1736119847305,-151.0,0.00022072,7]
[347806999,1736119847315,-1945.98012107,0.00022072,2]
[347807000,1736119847325,-500.0,0.00022153,3]
[347807001,1736119847339,-394.0,0.00022171,2]
[347807002,1736119847349,-150.0,0.00022171,2]
[347807003,1736119847359,-1945.98012107,0.00022176,2]
[347807004,1736119847369,-2837.06,0.00022185,3]
[347807005,1736119847380,-500.0,0.00022185,3]
[347807006,1736119847390,-500.0,0.00022186,3]
[347807007,1736119847401,-151.0,0.00022186,7]
[347807008,1736119847412,-904.96,0.00022188,3]
[347807009,1736119847422,-1945.98012107,0.00022279,2]
[347807010,1736119847432,-1141.95,0.0002231,2]
[347807011,1736119847442,-604.55778577,0.0002233,2]
[347807012,1736119847451,-1945.98012107,0.00022383,2]
[347807013,1736119847461,-465.0,0.000224,2]
[347807014,1736119847472,-500.0,0.00022427,3]
[347807015,1736119847482,-2837.06,0.00022459,3]
[347807016,1736119847492,-500.0,0.00022459,3]
[347807017,1736119847502,-500.0,0.0002246,3]
[347807018,1736119847511,-151.0,0.00022462,7]
[347807019,1736119847524,-151.0,0.00022462,7]
[347807020,1736119847533,-151.0,0.00022462,7]
[347807021,1736119847543,-904.96,0.00022462,3]
[347807022,1736119847552,-1945.98012107,0.00022486,2]
[347807023,1736119847562,-2243.91213398,0.00022551,5]
[347807024,1736119847571,-1945.98012107,0.0002259,2]
[347807025,1736119847581,-186.9564952,0.00022663,2]
[347807026,1736119847591,-1945.98012107,0.00022693,2]
[347807027,1736119847600,-151.0,0.00022701,7]
[347807028,1736119847610,-151.0,0.00022701,7]
[347807029,1736119847619,-500.0,0.00022701,3]
[347807030,1736119847628,-2837.06,0.00022733,3]
[347807031,1736119847638,-500.0,0.00022733,3]
[347807032,1736119847648,-500.0,0.00022734,3]
[347807033,1736119847657,-500.0,0.00022735,8]
[347807034,1736119847667,-904.96,0.00022736,3]
[347807035,1736119847678,-1945.98012107,0.00022797,2]
[347807036,1736119847688,-151.0,0.000228,6]
[347807037,1736119847698,-1022.65,0.000228,2]
[347807038,1736119847708,-152.77,0.000228,31]
[347807039,1736119847718,-152.77,0.000228,31]
[347807040,1736119847727,-152.77,0.000228,31]
[347807041,1736119847737,-152.77,0.000228,31]
[347807042,1736119847746,-152.77,0.000228,31]
[347807043,1736119847756,-152.77,0.000228,31]
[347807044,1736119847766,-152.77,0.000228,31]
[347807045,1736119847776,-1197.30369208,0.00022878,2]
[347807046,1736119847785,-604.55778577,0.00022879,2]
[347807047,1736119847794,-264.293538,0.0002288,7]
[347807048,1736119847804,-353.053768,0.0002288,7]
[347807049,1736119847813,-353.053768,0.0002288,7]
[347807050,1736119847822,-151.0,0.0002288,7]
[347807051,1736119847831,-155.91867079,0.00022886,2]
[347807052,1736119847840,-155.91867079,0.00022886,2]
[347807053,1736119847850,-155.91867079,0.00022886,2]
[347807054,1736119847859,-155.91867079,0.00022886,2]
[347807055,1736119847869,-155.91867079,0.00022886,2]
[347807056,1736119847878,-155.91867079,0.00022886,2]
[347807057,1736119847887,-155.91867079,0.00022886,2]
[347807058,1736119847898,-155.91867079,0.00022886,2]
[347807059,1736119847907,-155.91867079,0.00022886,2]
[347807060,1736119847917,-155.91867079,0.00022886,2]
[347807061,1736119847927,-155.91867079,0.00022886,2]
[347807062,1736119847936,-155.91,0.00022886,2]
[347807063,1736119847946,-155.91867079,0.00022886,2]
[347807064,1736119847956,-155.91867079,0.00022886,2]
[347807065,1736119847966,-155.91867079,0.00022886,2]
[347807066,1736119847976,-155.91867079,0.00022886,2]
[347807067,1736119847989,-155.91867079,0.00022886,2]
[347807068,1736119847999,-155.91867079,0.00022886,2]
[347807069,1736119848009,-155.91867079,0.00022886,2]
[347807070,1736119848019,-155.91867079,0.00022886,2]
[347807071,1736119848029,-155.91867079,0.00022886,2]
[347807072,1736119848038,-155.91867079,0.00022886,2]
[347807073,1736119848049,-155.91867079,0.00022886,2]
[347807074,1736119848058,-155.91867079,0.00022886,2]
[347807075,1736119848069,-155.91867079,0.00022886,2]
[347807076,1736119848078,-155.91867079,0.00022886,2]
[347807077,1736119848089,-155.91867079,0.00022886,2]
[347807078,1736119848099,-155.91867079,0.00022886,2]
[347807079,1736119848109,-155.91867079,0.00022886,2]
[347807080,1736119848118,-155.91,0.00022886,2]
[347807081,1736119848128,-222.74911425,0.00022891,2]
[347807082,1736119848138,-231.72,0.00022892,2]
[347807083,1736119848148,-173.79216849,0.00022892,2]
[347807084,1736119848159,-173.79,0.00022892,2]
[347807085,1736119848169,-249.974948,0.00022897,7]
[347807086,1736119848179,-249.974948,0.00022897,7]
[347807087,1736119848188,-249.974948,0.00022897,7]
[347807088,1736119848198,-249.974948,0.00022897,7]
[347807089,1736119848207,-151.0,0.00022897,7]
[347807090,1736119848216,-151.0,0.00022897,7]
[347807091,1736119848226,-151.0,0.00022897,7]
[347807092,1736119848235,-151.0,0.00022897,7]
[347807093,1736119848244,-1335.917138,0.00022897,7]
[347807094,1736119848254,-151.0,0.00022897,7]
[347807095,1736119848264,-1335.917138,0.00022897,7]
[347807096,1736119848273,-151.0,0.00022897,7]
[347807097,1736119848283,-1335.917138,0.00022897,7]
[347807098,1736119848292,-1335.917138,0.00022897,7]
[347807099,1736119848301,-151.0,0.00022898,7]
[347807100,1736119848311,-160.0,0.00022899,2]
[347807101,1736119848320,-2000.0,0.000229,2]
[347807102,1736119848330,-32596.46981623,0.000229,7]
[347807103,1736119848344,-226.372816,0.000229,7]
[347807104,1736119848354,-226.372816,0.000229,7]
[347807105,1736119848363,-151.0,0.000229,7]
[347807106,1736119848374,-151.0,0.000229,7]
[347807107,1736119848383,-151.0,0.000229,7]
[347807108,1736119848393,-151.0,0.000229,7]
[347807109,1736119848402,-151.0,0.000229,7]
[347807110,1736119848414,-151.0,0.000229,7]
[347807111,1736119848424,-151.0,0.000229,7]
[347807112,1736119848433,-151.0,0.000229,7]
[347807113,1736119848444,-151.0,0.000229,7]
[347807114,1736119848453,-249.974948,0.000229,7]
[347807115,1736119848463,-249.974948,0.000229,7]
[347807116,1736119848472,-271.806981,0.000229,7]
[347807117,1736119848481,-271.806981,0.000229,7]
[347807118,1736119848491,-151.0,0.000229,7]
[347807119,1736119848501,-151.0,0.000229,7]
[347807120,1736119848510,-1335.917138,0.000229,7]
[347807121,1736119848520,-1335.917138,0.000229,7]
[347807122,1736119848530,-353.053768,0.000229,7]
[347807123,1736119848539,-353.053768,0.000229,7]
[347807124,1736119848549,-353.053768,0.000229,7]
[347807125,1736119848559,-353.053768,0.000229,7]
[347807126,1736119848568,-1164.28260308,0.000229,2]
[347807127,1736119848578,-151.0,0.000229,7]
[347807128,1736119848587,-151.0,0.000229,7]
[347807129,1736119848598,-1945.98012107,0.000229,2]
[347807130,1736119848608,-160.0,0.00022956,2]
[347807131,1736119848618,-1152.0,0.00022957,22]
[347807132,1736119848627,-500.0,0.00022973,2]
[347807133,1736119848636,-500.0,0.00022973,2]
[347807134,1736119848646,-500.0,0.00022973,2]
[347807135,1736119848656,-1000.0,0.00022973,35]
[347807136,1736119848665,-150.09,0.00022973,2]
[347807137,1736119848675,-150.09,0.00022973,2]
[347807138,1736119848685,-150.09,0.00022973,2]
[347807139,1736119848694,-150.09,0.00022973,2]
[347807140,1736119848704,-500.0,0.00022973,2]
[347807141,1736119848713,-150.09,0.00022973,2]
[347807142,1736119848723,-150.09,0.00022973,2]
[347807143,1736119848732,-150.09,0.00022973,2]
[347807144,1736119848742,-500.0,0.00022975,3]
[347807145,1736119848753,-151.0,0.00022976,7]
[347807146,1736119848762,-151.0,0.00022976,7]
[347807147,1736119848772,-226.372816,0.00022977,7]
[347807148,1736119848782,-226.372816,0.00022977,7]
[347807149,1736119848791,-151.0,0.00022977,7]
[347807150,1736119848802,-151.0,0.00022977,7]
[347807151,1736119848811,-151.0,0.00022977,7]
[347807152,1736119848821,-151.0,0.00022977,7]
[347807153,1736119848831,-151.0,0.00022977,7]
[347807154,1736119848840,-151.0,0.00022977,7]
[347807155,1736119848849,-151.0,0.00022977,7]
[347807156,1736119848859,-151.0,0.00022977,7]
[347807157,1736119848871,-151.0,0.00022977,7]
[347807158,1736119848881,-266.634668,0.00022977,7]
[347807159,1736119848891,-151.0,0.00022977,7]
[347807160,1736119848901,-151.0,0.00022977,7]
[347807161,1736119848911,-163.052448,0.00022977,7]
[347807162,1736119848921,-151.0,0.00022977,7]
[347807163,1736119848930,-151.0,0.00022977,7]
[347807164,1736119848940,-151.0,0.00022977,7]
[347807165,1736119848949,-151.0,0.00022977,7]
[347807166,1736119848959,-151.0,0.00022977,7]
[347807167,1736119848968,-151.0,0.00022978,2]
[347807168,1736119848977,-151.0,0.00022978,2]
[347807169,1736119848987,-151.0,0.00022978,2]
[347807170,1736119848997,-151.0,0.00022978,2]
[347807171,1736119849007,-151.0,0.00022978,2]
[347807172,1736119849016,-190.084256,0.00022978,2]
[347807173,1736119849111,-211.796891,0.00022978,7]
[347807174,1736119849121,-211.796891,0.00022978,7]
[347807175,1736119849131,-211.796891,0.00022978,7]
[347807176,1736119849141,-211.796891,0.00022978,7]
[347807177,1736119849151,-211.796891,0.00022978,7]
[347807178,1736119849161,-211.796891,0.00022978,7]
[347807179,1736119849171,-211.796891,0.00022978,7]
[347807180,1736119849181,-249.974948,0.00022978,7]
[347807181,1736119849191,-211.796891,0.00022978,7]
[347807182,1736119849201,-211.796891,0.00022978,7]
[347807183,1736119849211,-211.796891,0.00022978,7]
[347807184,1736119849221,-211.796891,0.00022978,7]
[347807185,1736119849231,-211.796891,0.00022978,7]
[347807186,1736119849241,-211.796891,0.00022978,7]
[347807187,1736119849252,-211.796891,0.00022978,7]
[347807188,1736119849262,-211.796891,0.00022978,7]
[347807189,1736119849273,-211.796891,0.00022978,7]
[347807190,1736119849282,-211.796891,0.00022978,7]
[347807191,1736119849292,-211.796891,0.00022978,7]
[347807192,1736119849302,-249.974948,0.00022978,7]
[347807193,1736119849311,-211.796891,0.00022978,7]
[347807194,1736119849322,-211.796889,0.00022978,7]
[347807195,1736119849332,-271.806981,0.00022978,7]
[347807196,1736119849346,-271.806981,0.00022978,7]
[347807197,1736119849356,-271.806981,0.00022978,7]
[347807198,1736119849367,-271.806981,0.00022978,7]
[347807199,1736119849378,-271.806981,0.00022978,7]
[347807200,1736119849388,-271.806981,0.00022978,7]
[347807201,1736119849399,-271.806981,0.00022978,7]
[347807202,1736119849409,-271.806981,0.00022978,7]
[347807203,1736119849419,-271.806981,0.00022978,7]
[347807204,1736119849429,-271.806981,0.00022978,7]
[347807205,1736119849439,-271.806981,0.00022978,7]
[347807206,1736119849449,-271.806981,0.00022978,7]
[347807207,1736119849459,-271.806981,0.00022978,7]
[347807208,1736119849468,-271.806981,0.00022978,7]
[347807209,1736119849478,-271.806981,0.00022978,7]
[347807210,1736119849487,-271.806981,0.00022978,7]
[347807211,1736119849497,-271.806981,0.00022978,7]
[347807212,1736119849507,-271.806988,0.00022978,7]
[347807213,1736119849517,-151.0,0.00022978,7]
[347807214,1736119849527,-151.0,0.00022978,7]
[347807215,1736119849537,-1335.917138,0.00022978,7]
[347807216,1736119849547,-1335.917138,0.00022978,7]
[347807217,1736119849557,-249.974948,0.00022979,7]
[347807218,1736119849567,-249.974948,0.00022979,7]
[347807219,1736119849577,-249.974948,0.00022979,7]
[347807220,1736119849587,-249.974948,0.00022979,7]
[347807221,1736119849597,-249.974948,0.00022979,7]
[347807222,1736119849607,-249.974948,0.00022979,7]
[347807223,1736119849616,-249.974948,0.00022979,7]
[347807224,1736119849626,-249.974948,0.00022979,7]
[347807225,1736119849637,-249.974948,0.00022979,7]
[347807226,1736119849646,-249.974948,0.00022979,7]
[347807227,1736119849656,-249.974948,0.00022979,7]
[347807228,1736119849665,-249.974955,0.00022979,7]
[347807229,1736119849675,-151.0,0.00022979,7]
[347807230,1736119849685,-151.0,0.00022979,7]
[347807231,1736119849694,-151.0,0.00022979,7]
[347807232,1736119849705,-151.0,0.00022979,7]
[347807233,1736119849715,-151.0,0.00022979,7]
[347807234,1736119849725,-151.0,0.00022979,7]
[347807235,1736119849735,-151.0,0.00022979,7]
[347807236,1736119849745,-151.0,0.00022979,7]
[347807237,1736119849755,-151.0,0.00022979,7]
[347807238,1736119849766,-290.266736,0.00022979,7]
[347807239,1736119849775,-1335.917138,0.00022979,7]
[347807240,1736119849785,-1335.917138,0.00022979,7]
[347807241,1736119849795,-1335.917138,0.00022979,7]
[347807242,1736119849805,-1335.917138,0.00022979,7]
[347807243,1736119849814,-1335.917138,0.00022979,7]
[347807244,1736119849824,-1335.917138,0.00022979,7]
[347807245,1736119849834,-1335.917138,0.00022979,7]
[347807246,1736119849844,-1335.917138,0.00022979,7]
[347807247,1736119849853,-1335.917138,0.00022979,7]
[347807248,1736119849863,-1335.917138,0.00022979,7]
[347807249,1736119849873,-1335.917138,0.00022979,7]
[347807250,1736119849883,-1335.91714613,0.00022979,7]
[347807251,1736119849894,-151.0,0.0002298,7]
[347807252,1736119849904,-151.0,0.0002298,7]
[347807253,1736119849914,-151.0,0.0002298,7]
[347807254,1736119849924,-226.372816,0.0002298,7]
[347807255,1736119849934,-226.372816,0.0002298,7]
[347807256,1736119849945,-226.372816,0.0002298,7]
[347807257,1736119849955,-226.372816,0.0002298,7]
[347807258,1736119849966,-226.372816,0.0002298,7]
[347807259,1736119849975,-226.372816,0.0002298,7]
[347807260,1736119849985,-226.372816,0.0002298,7]
[347807261,1736119849995,-226.372816,0.0002298,7]
[347807262,1736119850005,-226.372816,0.0002298,7]
[347807263,1736119850017,-226.372816,0.0002298,7]
[347807264,1736119850028,-226.372816,0.0002298,7]
[347807265,1736119850037,-226.372826,0.0002298,7]
[347807266,1736119850047,-151.0,0.0002298,7]
[347807267,1736119850058,-151.0,0.0002298,7]
[347807268,1736119850068,-151.0,0.0002298,7]
[347807269,1736119850078,-151.0,0.0002298,7]
[347807270,1736119850088,-151.0,0.0002298,7]
[347807271,1736119850098,-151.0,0.0002298,7]
[347807272,1736119850108,-151.0,0.0002298,7]
[347807273,1736119850118,-151.0,0.0002298,7]
[347807274,1736119850128,-285.31729265,0.0002298,7]
[347807275,1736119850137,-151.0,0.0002298,7]
[347807276,1736119850147,-151.0,0.0002298,7]
[347807277,1736119850157,-151.0,0.0002298,7]
[347807278,1736119850167,-151.0,0.0002298,7]
[347807279,1736119850176,-151.0,0.0002298,7]
[347807280,1736119850186,-218.465778,0.0002298,7]
[347807281,1736119850195,-151.0,0.0002298,7]
[347807282,1736119850204,-151.0,0.0002298,7]
[347807283,1736119850213,-151.0,0.0002298,7]
[347807284,1736119850223,-151.0,0.0002298,7]
[347807285,1736119850233,-151.0,0.0002298,7]
[347807286,1736119850243,-252.717368,0.0002298,7]
[347807287,1736119850253,-151.0,0.0002298,7]
[347807288,1736119850263,-151.0,0.0002298,7]
[347807289,1736119850274,-151.0,0.0002298,7]
[347807290,1736119850284,-151.0,0.0002298,7]
[347807291,1736119850294,-151.0,0.0002298,7]
[347807292,1736119850303,-151.0,0.0002298,7]
[347807293,1736119850313,-151.0,0.0002298,7]
[347807294,1736119850323,-151.0,0.0002298,7]
[347807295,1736119850334,-151.0,0.0002298,7]
[347807296,1736119850344,-151.0,0.0002298,7]
[347807297,1736119850354,-151.0,0.0002298,7]
[347807298,1736119850364,-151.0,0.0002298,7]
[347807299,1736119850375,-151.0,0.0002298,7]
[347807300,1736119850386,-151.0,0.0002298,7]
[347807301,1736119850397,-151.0,0.0002298,7]
[347807302,1736119850406,-273.929485,0.0002298,7]
[347807303,1736119850417,-353.053768,0.0002298,7]
[347807304,1736119850427,-353.053768,0.0002298,7]
[347807305,1736119850437,-151.0,0.0002298,7]
[347807306,1736119850447,-240219.00777765,0.00022986,10]
[347807307,1736120280707,162.484541,0.00013973,2]
[347807308,1736120739141,-812.0045634,0.0001896,2]
[347807309,1736120739162,-486.31367105,0.00018968,2]
[347807310,1736120742091,-163.68632895,0.00018968,2]
[347807311,1736120742112,-1298.31823445,0.00018986,2]
[347807312,1736120742133,-162.977515,0.00019178,2]
[347807313,1736120742154,-284.31780294,0.00019894,2]
[347807314,1736120742175,-500.0,0.00019973,2]
[347807315,1736120742196,-500.0,0.00019992,3]
[347807316,1736120742218,-300.0,0.00019992,2]
[347807317,1736120742240,-168.884,0.00019993,2]
[347807318,1736120742262,-500.0,0.00019993,3]
[347807319,1736120742284,-500.0,0.00019993,3]
[347807320,1736120742306,-500.0,0.00019993,3]
[347807321,1736120742328,-83.39011866,0.00019993,3]
[347807322,1736120825106,-1191.23799091,0.000189,2]
[347807323,1736120825131,-474.39910485,0.00019773,2]
[347807324,1736120825157,-180.66897083,0.00019893,2]
[347807325,1736120825182,-422.27192823,0.00019992,3]
[347807326,1736120825214,-77.72807177,0.00019992,3]
[347807327,1736120825239,-463.41730573,0.00019992,3]
[347807393,1736121037715,-302.8788636,0.00019892,2]
[347807395,1736121037725,-158.08534952,0.00019892,2]
[347807396,1736121037736,-227.45424236,0.00019893,2]
[347807398,1736121037745,-36.58269427,0.00019992,3]
[347807400,1736121037754,-500.0,0.00019992,3]
[347807402,1736121037764,-228.55130708,0.00019992,3]
[347807404,1736121037774,-500.0,0.00019992,3]
[347807407,1736121037784,-501.40081499,0.00019992,3]
[347807409,1736121037793,-500.0,0.00019992,3]
[347807411,1736121037803,-189.68882962,0.00019992,3]
[347807413,1736121037812,-500.0,0.00019992,3]
[347807415,1736121037821,-500.0,0.00019992,3]
[347807417,1736121037831,-538.53388386,0.00019992,3]
[347807418,1736121037839,-200.0,0.00019992,3]
[347807420,1736121037848,-500.0,0.00019992,3]
[347807422,1736121037857,-500.0,0.00019992,3]
[347807424,1736121037867,-500.0,0.00019992,3]
[347807426,1736121037875,-556.18725913,0.00019992,3]
[347807428,1736121037884,-500.0,0.00019992,3]
[347807430,1736121037894,-500.0,0.00019992,3]
[347807432,1736121037903,-500.0,0.00019992,3]
[347807434,1736121037912,-500.0,0.00019992,3]
[347807436,1736121037922,-500.0,0.00019992,3]
[347807438,1736121037931,-504.69397731,0.00019992,3]
[347807440,1736121037941,-500.0,0.00019992,3]
[347807442,1736121037950,-500.0,0.00019992,3]
[347807444,1736121037959,-500.0,0.00019992,3]
[347807446,1736121037969,-500.0,0.00019992,3]
[347807448,1736121037977,-500.0,0.00019992,3]
[347807450,1736121037987,-500.0,0.00019992,3]
[347807452,1736121037996,-500.0,0.00019992,3]
[347807454,1736121038006,-500.0,0.00019992,3]
[347807456,1736121038016,-500.0,0.00019992,3]
[347807458,1736121038026,-500.0,0.00019992,3]
[347807460,1736121038035,-386.74913043,0.00019992,3]
[347807462,1736121038046,-500.0,0.00019992,3]
[347807464,1736121038055,-500.0,0.00019992,3]
[347807466,1736121038064,-500.0,0.00019992,3]
[347807468,1736121038074,-500.0,0.00019992,3]
[347807469,1736121038083,-500.0,0.00019992,3]
[347807471,1736121038092,-500.0,0.00019992,3]
[347807473,1736121038101,-500.0,0.00019992,3]
[347807474,1736121038111,-500.0,0.00019992,3]
[347807476,1736121038120,-500.0,0.00019992,3]
[347807478,1736121038130,-500.0,0.00019992,3]
[347807479,1736121038139,-500.0,0.00019992,3]
[347807480,1736121038148,-500.0,0.00019992,3]
[347807482,1736121038157,-500.0,0.00019992,3]
[347807484,1736121038167,-563.13509123,0.00019992,2]
[347807485,1736121038176,-228.68809662,0.00019992,2]
[347807486,1736121038185,-349.00055339,0.00019992,2]
[347807487,1736121038195,-500.0,0.00019992,2]
[347807488,1736121038204,-500.0,0.00019992,2]
[347807489,1736121038213,-500.0,0.00019992,2]
[347807490,1736121038222,-500.0,0.00019992,2]
[347807491,1736121038237,-500.0,0.00019992,2]
[347807492,1736121038246,-500.0,0.00019992,2]
[347807493,1736121038256,-625.59485805,0.00019992,2]
[347807494,1736121038265,-500.0,0.00019992,2]
[347807495,1736121038275,-500.0,0.00019992,2]
[347807496,1736121038284,-500.0,0.00019992,2]
[347807497,1736121038293,-500.0,0.00019992,2]
[347807498,1736121038302,-500.0,0.00019992,2]
[347807499,1736121038311,-500.0,0.00019992,2]
[347807500,1736121038321,-500.0,0.00019992,2]
[347807501,1736121038330,-500.0,0.00019992,2]
[347807502,1736121038340,-500.0,0.00019992,2]
[347807503,1736121038349,-500.0,0.00019992,2]
[347807504,1736121038358,-500.0,0.00019992,2]
[347807505,1736121038367,-500.0,0.00019992,2]
[347807506,1736121038376,-500.0,0.00019992,2]
[347807507,1736121038384,-500.0,0.00019992,2]